bitfinex-derivatives/quotes_ETHF0:USTF0_20250709
["timestamp","ask_amount","ask_price","bid_price","bid_amount"]
[1752026391109,8.8446,2606.0,2605.9,28.97665325]
[1752026392511,9.863,2606.0,2605.9,28.97665325]
[1752026392813,9.863,2606.0,2605.9,33.57574171]
[1752026393408,4.863,2606.0,2605.9,33.57574171]
[1752026393613,13.35630001,2606.0,2605.9,33.57574171]
[1752026394114,14.70540001,2606.0,2605.9,33.57574171]
[1752026396909,14.70540001,2606.0,2605.9,34.6124767]
[1752026398408,11.49760001,2606.0,2605.9,35.2846767]
[1752026398609,10.47920001,2606.0,2605.9,34.6124767]
[1752026398911,10.47920001,2606.0,2605.9,35.2846767]
[1752026399107,10.47920001,2606.0,2605.9,34.6124767]
[1752026399307,10.47920001,2606.0,2605.9,35.2846767]
[1752026399510,10.47920001,2606.0,2605.9,34.6124767]
[1752026399712,10.47920001,2606.0,2605.9,35.2846767]
[1752026400615,8.49330001,2606.0,2605.9,31.68228824]
[1752026400915,8.49330001,2606.0,2605.9,31.94088911]
[1752026401110,3.31293583,2606.0,2605.9,37.68956117]
[1752026401913,3.94973583,2606.0,2605.9,31.94088911]
[1752026402215,3.31293583,2606.0,2605.9,31.94088911]
[1752026402412,1.2768,2606.4,2606.3,0.76718]
[1752026402615,3.69915,2606.4,2606.3,2.07535325]
[1752026403113,8.69915,2606.4,2606.3,28.20735325]
[1752026403313,9.99448586,2606.4,2606.3,32.80657973]
[1752026404010,8.69915,2606.4,2606.3,32.80657973]
[1752026404310,9.99448586,2606.4,2606.3,2.07535325]
[1752026404711,9.22733586,2606.4,2605.9,5.74867206]
[1752026405013,9.22733586,2606.4,2605.6,8.04814088]
[1752026405014,0.7673,2605.9,2605.8,5.74867206]
[1752026405210,0.76733,2605.8,2605.7,31.87867206]
[1752026405410,2.44853441,2605.8,2605.7,6.26942927]
[1752026405607,2.44853441,2605.8,2605.7,0.52075721]
[1752026405608,8.21586441,2605.8,2605.7,0.52075721]
[1752026406912,49.01586441,2605.8,2605.7,0.52075721]
[1752026407214,49.01586441,2605.8,2605.7,2.82026481]
[1752026407811,0.76739,2605.6,2605.5,3.45009404]
[1752026408018,0.7675,2605.3,2605.1,0.76753]
[1752026408316,3.9753,2605.3,2605.2,26.131]
[1752026408511,4.6121,2605.3,2605.2,26.131]
[1752026408710,5.6305,2605.3,2605.2,26.131]
[1752026408912,5.6305,2605.3,2605.2,26.8985]
[1752026409106,4.863,2605.3,2605.2,26.8985]
[1752026409614,5.63048,2605.3,2605.2,26.131]
[1752026409815,6.8818,2605.3,2605.2,26.8985]
[1752026410014,6.8818,2605.3,2605.2,26.131]
[1752026410419,0.76753,2605.1,2605.0,0.00575749]
[1752026410715,2.42273,2605.1,2605.0,0.00575749]
[1752026411117,2.42273,2605.1,2605.0,26.13975749]
[1752026411316,2.42273,2605.1,2605.0,0.00575749]
[1752026411817,2.42273,2605.1,2605.0,26.13875749]
[1752026412713,2.42273,2605.1,2605.0,0.00575749]
[1752026412909,2.42273,2605.1,2605.0,26.14075749]
[1752026413418,2.42273,2605.1,2605.0,0.00575749]
[1752026413620,2.42273,2605.1,2605.0,26.14075749]
[1752026413812,2.42273,2605.1,2605.0,0.00575749]
[1752026414014,2.42273,2605.1,2605.0,26.14075749]
[1752026414414,2.42273,2605.1,2605.0,26.90831749]
[1752026414814,2.42273,2605.1,2605.0,26.14075749]
[1752026415016,2.42273,2605.1,2605.0,26.90831749]
[1752026415212,2.42273,2605.1,2605.0,26.14075749]
[1752026416317,2.42273,2605.1,2605.0,0.00575749]
[1752026416922,2.42273,2605.1,2605.0,1.69162046]
[1752026417116,3.73763,2605.1,2605.0,1.69162046]
[1752026417317,3.73763,2605.1,2605.0,3.41032829]
[1752026420320,3.73763,2605.1,2605.0,0.00575749]
[1752026420525,0.76765,2604.7,2604.6,26.138]
[1752026420824,0.76765,2604.7,2604.6,27.59898]
[1752026421226,1.40825,2604.7,2604.6,27.59898]
[1752026421427,0.76764,2604.8,2604.7,0.76765]
[1752026421628,1.40824,2604.8,2604.7,1.46195]
[1752026421924,0.76764,2604.8,2604.7,1.46195]
[1752026422127,1.40824,2604.8,2604.7,1.46195]
[1752026422426,1.40824,2604.8,2604.7,0.6943]
[1752026422822,2.37124,2604.8,2604.7,0.6943]
[1752026423018,0.76765,2604.7,2604.6,26.137]
[1752026423223,0.76768,2604.6,2604.5,57.3206]
[1752026423421,0.76768,2604.6,2604.5,83.4586]
[1752026423422,1.40828,2604.6,2604.5,83.4586]
[1752026423722,2.37128,2604.6,2604.5,83.4586]
[1752026423918,1.73068,2604.6,2604.5,83.4586]
[1752026424123,1.40828,2604.6,2604.5,83.4586]
[1752026424518,0.76768,2604.6,2604.5,2.81831]
[1752026424718,1.40828,2604.6,2604.5,29.65061]
[1752026425020,0.76768,2604.6,2604.5,29.65061]
[1752026425219,1.40828,2604.6,2604.5,29.65061]
[1752026425425,0.76768,2604.6,2604.5,29.65061]
[1752026425729,1.40828,2604.6,2604.5,29.65061]
[1752026426026,0.6406,2604.6,2604.5,29.65061]
[1752026426428,0.6406,2604.6,2604.5,30.60761]
[1752026428230,0.6406,2604.6,2604.5,29.65061]
[1752026429324,0.6406,2604.6,2604.5,3.51261]
[1752026429626,0.6406,2604.6,2604.5,29.65261]
[1752026430127,1.40828,2604.6,2604.5,3.51261]
[1752026430430,1.40828,2604.6,2604.5,28.29111]
[1752026430630,0.6406,2604.6,2604.5,28.29111]
[1752026430830,0.6406,2604.6,2604.5,2.15111]
[1752026431032,0.6406,2604.6,2604.5,28.29211]
[1752026433729,1.40828,2604.6,2604.5,28.29211]
[1752026434533,0.6406,2604.6,2604.5,28.29211]
[1752026435333,0.6406,2604.6,2604.5,29.24911]
[1752026438442,0.6406,2604.6,2604.5,28.29211]
[1752026440541,1.40828,2604.6,2604.5,1.3834]
[1752026440732,1.6036,2604.6,2604.5,26.14]
[1752026440938,2.37128,2604.6,2604.5,26.14]
[1752026441242,2.2633,2604.6,2604.5,26.90771]
[1752026441442,3.03098,2604.6,2604.5,26.90771]
[1752026441641,3.03098,2604.6,2604.5,27.60201]
[1752026442343,3.03098,2604.6,2604.5,26.8343]
[1752026443042,3.03098,2604.6,2604.5,26.14]
[1752026443939,0.76774,2604.4,2604.3,0.76776]
[1752026444139,0.76777,2604.3,2604.2,1.45268]
[1752026444343,3.01687,2604.3,2604.2,26.90778]
[1752026444842,3.01687,2604.3,2604.2,27.60208]
[1752026445043,2.2491,2604.3,2604.2,27.60208]
[1752026445345,3.01687,2604.3,2604.2,27.60208]
[1752026446245,2.05387,2604.3,2604.2,27.60208]
[1752026446545,1.2861,2604.3,2604.2,1.46208]
[1752026446745,1.2861,2604.3,2604.2,27.60308]
[1752026448247,0.6406,2604.3,2604.2,28.56008]
[1752026448446,0.6406,2604.3,2604.2,29.93438]
[1752026449151,3.2078,2604.5,2604.4,0.76774]
[1752026449349,3.2078,2604.5,2604.4,2.41904]
[1752026449550,3.8484,2604.5,2604.4,1.46204]
[1752026449750,3.2078,2604.5,2604.4,27.60304]
[1752026450147,3.8484,2604.5,2604.4,27.60304]
[1752026451754,3.8484,2604.5,2604.4,1.46204]
[1752026451949,3.8484,2604.5,2604.4,27.60304]
[1752026452155,3.8484,2604.5,2604.4,1.46204]
[1752026453055,4.61611,2604.5,2604.4,0.6943]
[1752026453457,4.61611,2604.5,2604.4,1.46204]
[1752026453958,5.61491,2604.5,2604.4,0.6943]
[1752026454652,5.61491,2604.5,2604.4,26.8343]
[1752026454858,5.61491,2604.5,2604.4,27.60204]
[1752026455154,5.61491,2604.5,2604.4,0.6943]
[1752026455358,4.8472,2604.5,2603.8,7.78826911]
[1752026455559,0.76785,2604.1,2604.0,0.76784]
[1752026455751,0.76789,2604.0,2603.9,0.76787]
[1752026455949,0.76789,2604.0,2603.7,61.56016911]
[1752026455950,0.76792,2603.8,2603.7,4.58046911]
[1752026456154,0.76798,2603.6,2603.5,4.58046911]
[1752026456351,2.44288,2603.6,2603.5,26.14]
[1752026456861,2.44288,2603.6,2603.5,26.8208]
[1752026457162,2.44288,2603.6,2603.5,27.58881]
[1752026457559,1.6749,2603.6,2603.5,27.58881]
[1752026457961,1.3418,2603.6,2603.5,27.58881]
[1752026459657,0.6761,2603.6,2603.5,28.59261]
[1752026460363,1.44408,2603.6,2603.5,0.6808]
[1752026460661,1.44408,2603.6,2603.5,26.8228]
[1752026461462,1.44408,2603.6,2603.5,27.59081]
[1752026461666,0.6761,2603.6,2603.5,27.59081]
[1752026461963,2.44288,2603.6,2603.5,27.59181]
[1752026462164,1.44408,2603.6,2603.5,27.59181]
[1752026462865,1.44408,2603.6,2603.5,0.6808]
[1752026463158,0.6761,2603.6,2603.5,27.59181]
[1752026464263,3.2078,2603.8,2603.7,0.76795]
[1752026464467,3.8839,2603.8,2603.7,1.44875]
[1752026464659,3.2078,2603.8,2603.7,1.44875]
[1752026464859,3.8839,2603.8,2603.7,1.44875]
[1752026465058,3.2078,2603.8,2603.7,1.44875]
[1752026465468,4.65182,2603.8,2603.7,0.6808]
[1752026465764,4.65182,2603.8,2603.7,1.44875]
[1752026467262,3.2078,2603.8,2603.7,1.44875]
[1752026467460,3.8839,2603.8,2603.7,1.44875]
[1752026467665,4.65182,2603.8,2603.7,1.44875]
[1752026469263,5.65062,2603.8,2603.7,0.6808]
[1752026469667,0.76795,2603.7,2603.6,26.144]
[1752026469868,1.44405,2603.7,2603.6,26.144]
[1752026470068,0.76804,2603.4,2603.3,5.34851911]
[1752026470269,1.44414,2603.4,2603.3,5.26126911]
[1752026470567,0.76806,2603.3,2603.2,6.00323911]
[1752026470770,2.09776,2603.3,2603.2,32.06096911]
[1752026470970,2.09776,2603.3,2603.2,32.82905911]
[1752026471268,2.09776,2603.3,2603.2,6.68405911]
[1752026471464,2.09776,2603.3,2603.2,32.06096911]
[1752026471970,1.3297,2603.3,2603.2,32.82905911]
[1752026472470,2.09777,2603.3,2603.2,32.82905911]
[1752026473170,2.09777,2603.3,2603.2,32.06096911]
[1752026474068,2.09776,2603.3,2603.2,32.82905911]
[1752026474366,1.3297,2603.3,2603.2,32.82905911]
[1752026474872,0.6761,2603.3,2603.2,33.83285911]
[1752026476471,3.2078,2603.8,2603.2,28.4843]
[1752026476771,3.2078,2603.8,2603.6,0.76796]
[1752026476973,3.2078,2603.8,2603.7,1.3576]
[1752026477272,3.8839,2603.8,2603.7,1.3576]
[1752026477470,3.2078,2603.8,2603.7,2.12555]
[1752026477868,3.8839,2603.8,2603.7,2.12555]
[1752026478768,3.8839,2603.8,2603.7,3.12935]
[1752026480976,3.8839,2603.8,2603.7,29.27435]
[1752026481277,3.8839,2603.8,2603.7,27.5026]
[1752026481568,4.65182,2603.8,2603.5,0.76799]
[1752026481770,0.76799,2603.6,2603.3,0.6357]
[1752026481966,0.76799,2603.6,2603.4,26.144]
[1752026482168,0.6744,2603.5,2603.4,26.8185]
[1752026482475,1.3145,2603.5,2603.4,27.58653]
[1752026483071,2.08251,2603.5,2603.4,26.8185]
[1752026483372,5.4678,2603.5,2602.9,64.09936451]
[1752026483573,5.4678,2603.5,2603.1,0.76811]
[1752026483776,5.4678,2603.5,2603.0,26.7797]
[1752026483970,0.76805,2603.4,2603.2,0.76807]
[1752026484177,1.40815,2603.4,2603.3,0.6745]
[1752026484376,0.6401,2603.4,2603.3,1.44257]
[1752026484576,5.59573,2603.5,2603.3,1.44257]
[1752026484577,3.97583,2603.5,2603.4,0.76804]
[1752026484777,4.61593,2603.5,2603.4,1.3421]
[1752026485578,4.61593,2603.5,2603.4,2.11014]
[1752026485579,3.8479,2603.5,2603.4,2.11014]
[1752026486375,0.6401,2603.5,2603.4,29.24864]
[1752026486579,3.8893,2603.8,2603.7,0.76795]
[1752026486879,6.01732458,2603.8,2603.7,1.44245]
[1752026487180,3.2078,2603.8,2603.7,2.43695]
[1752026488073,3.2078,2603.8,2603.7,1.44245]
[1752026488269,3.2078,2603.8,2603.7,2.43695]
[1752026488878,3.8479,2603.8,2603.7,2.43695]
[1752026489280,3.8479,2603.8,2603.7,0.6745]
[1752026489481,4.61582,2603.8,2603.7,0.6745]
[1752026489671,3.8479,2603.8,2603.7,1.669]
[1752026489876,3.8479,2603.8,2603.7,2.43695]
[1752026490581,3.2078,2603.8,2603.7,2.43695]
[1752026491182,3.8479,2603.8,2603.7,2.43695]
[1752026491684,3.8479,2603.8,2603.7,1.44245]
[1752026491887,4.61582,2603.8,2603.7,1.44245]
[1752026492583,3.2078,2604.1,2603.7,1.669]
[1752026492884,3.2078,2604.1,2604.0,0.76786]
[1752026493085,5.3360161,2604.1,2604.0,0.76786]
[1752026493583,4.6959161,2604.1,2604.0,26.91186]
[1752026493783,3.2078,2604.4,2604.3,0.76777]
[1752026493985,4.69646682,2604.4,2604.3,0.76777]
[1752026494387,5.33656682,2604.4,2604.3,0.76777]
[1752026494888,2.12876682,2604.4,2604.3,26.91077]
[1752026495086,3.2078,2605.0,2604.4,1.91936]
[1752026495382,1.48896249,2604.9,2604.8,0.7676]
[1752026495586,1.48896249,2604.9,2604.8,26.9576]
[1752026495782,2.12906249,2604.9,2604.8,26.9576]
[1752026496084,2.12906249,2604.9,2604.8,27.6321]
[1752026496785,0.6401,2604.9,2604.8,27.6321]
[1752026497689,0.6401,2604.9,2604.8,1.4421]
[1752026497988,1.40769,2604.9,2604.8,26.8555]
[1752026498288,0.6401,2604.9,2604.8,27.62312]
[1752026500787,1.40769,2604.9,2604.8,27.62312]
[1752026501687,0.6401,2604.9,2604.8,1.44212]
[1752026501989,0.6401,2604.9,2604.8,27.61212]
[1752026502884,0.6401,2604.9,2604.8,28.60662]
[1752026503084,0.6401,2604.9,2604.8,2.43662]
[1752026503590,0.6401,2604.9,2604.8,28.60162]
[1752026505486,0.6401,2604.9,2604.8,2.43662]
[1752026505686,0.6401,2604.9,2604.8,28.59862]
[1752026505988,1.5856,2604.9,2604.7,26.16]
[1752026506289,3.97542,2604.8,2604.7,26.16]
[1752026506484,4.61552,2604.8,2604.7,26.16]
[1752026506684,4.61552,2604.8,2604.7,26.8345]
[1752026506989,0.76771,2604.5,2604.4,1.76222]
[1752026507188,1.40781,2604.5,2604.4,26.8415]
[1752026507481,0.76771,2604.5,2604.4,1.44224]
[1752026507783,1.40781,2604.5,2604.4,0.6745]
[1752026507989,0.76777,2604.3,2604.2,2.39398]
[1752026508290,4.76766,2604.7,2604.2,29.23648]
[1752026508488,0.76776,2604.4,2604.3,0.76776]
[1752026508683,1.40786,2604.4,2604.3,1.44226]
[1752026508988,0.76776,2604.4,2604.3,27.60927]
[1752026509185,1.40786,2604.4,2604.3,27.60927]
[1752026509385,1.903,2604.7,2604.5,0.76771]
[1752026509585,1.40168,2604.7,2604.5,1.44221]
[1752026509785,0.76768,2604.6,2604.5,26.8405]
[1752026509988,1.40778,2604.6,2604.5,26.8405]
[1752026510389,1.40778,2604.6,2604.5,27.60821]
[1752026510591,1.40778,2604.6,2604.5,1.44221]
[1752026511086,1.40668,2604.6,2604.5,2.43671]
[1752026511291,0.76768,2604.6,2604.5,1.44221]
[1752026511485,1.40668,2604.6,2604.5,0.6745]
[1752026511891,1.40668,2604.6,2604.5,26.168]
[1752026512596,1.40668,2604.6,2603.7,1.91981]
[1752026512597,0.76783,2604.1,2604.0,2.08554]
[1752026512790,1.91935,2604.5,2604.2,0.76779]
[1752026512791,0.7678,2604.3,2604.2,0.76779]
[1752026512988,1.4068,2604.3,2604.2,1.44329]
[1752026515192,0.639,2604.3,2604.2,1.44329]
[1752026515393,1.40677,2604.3,2604.2,2.46409]
[1752026516692,1.40677,2604.3,2604.2,0.6755]
[1752026520693,0.7678,2604.2,2604.1,26.94882]
[1752026520894,2.0707,2604.2,2604.1,27.62432]
[1752026521191,1.4317,2604.2,2604.1,27.62432]
[1752026521392,2.0707,2604.2,2604.1,26.8565]
[1752026521796,5.2785,2604.2,2604.1,0.6755]
[1752026521992,5.2785,2604.2,2604.1,26.8415]
[1752026522289,5.2785,2604.2,2604.1,0.6755]
[1752026523692,4.6395,2604.2,2604.1,1.44333]
[1752026523893,3.8717,2604.2,2604.1,2.46413]
[1752026524092,3.2078,2604.2,2604.1,2.46413]
[1752026524288,3.2078,2604.2,2604.1,3.78693]
[1752026524493,0.76771,2604.5,2604.4,0.76774]
[1752026524696,3.2078,2604.7,2604.4,27.8663]
[1752026524895,3.2078,2604.7,2604.6,0.76768]
[1752026525198,2.26479653,2605.1,2604.6,27.8773]
[1752026525199,3.2078,2605.1,2604.6,27.8773]
[1752026525389,0.76759,2604.9,2604.8,0.76761]
[1752026525586,2.2774802,2604.9,2604.8,28.2447]
[1752026525790,1.5098902,2604.9,2604.8,30.03312]
[1752026525992,2.2774802,2604.9,2604.8,29.2655]
[1752026526593,2.9164802,2604.9,2604.8,29.2655]
[1752026527093,2.9164802,2604.9,2604.8,26.8595]
[1752026528599,2.91665679,2604.9,2604.8,26.8595]
[1752026529398,1.40659,2604.9,2604.8,26.8595]
[1752026529598,1.40659,2604.9,2604.8,27.62712]
[1752026530293,1.40659,2604.9,2604.8,26.8595]
[1752026530893,1.40659,2604.9,2604.8,27.62712]
[1752026531498,1.40659,2604.9,2604.8,26.8595]
[1752026531696,2.91690108,2604.9,2604.8,26.8595]
[1752026532398,2.91690108,2604.9,2604.8,27.62712]
[1752026533400,0.76765,2604.7,2604.6,1.0208]
[1752026533697,3.97545,2604.7,2604.6,27.8633]
[1752026533892,4.61445,2604.7,2604.6,27.8633]
[1752026534092,4.61445,2604.7,2604.6,28.63097]
[1752026534497,3.8468,2604.7,2604.6,28.63097]
[1752026535696,4.61445,2604.7,2604.6,28.63097]
[1752026536203,3.8468,2604.7,2604.6,28.63097]
[1752026536500,0.639,2604.7,2604.6,28.63097]
[1752026537601,3.8468,2604.7,2604.6,28.63097]
[1752026537799,3.2078,2604.7,2604.6,28.63097]
[1752026538103,0.00575749,2604.9,2604.8,0.76762]
[1752026538303,0.00575749,2604.9,2604.8,27.60112]
[1752026538495,0.00575749,2604.9,2604.8,28.62192]
[1752026539397,3.2078,2605.4,2605.3,0.76748]
[1752026539699,3.2078,2605.4,2605.3,28.64178]
[1752026541198,3.2078,2605.8,2605.7,0.76736]
[1752026541401,3.2078,2605.8,2605.7,28.66226]
[1752026541999,3.2078,2606.2,2606.1,0.76724]
[1752026542202,3.2078,2606.2,2606.1,28.66514]
[1752026543400,3.8399,2606.2,2606.1,26.8771]
[1752026543601,3.97501,2606.2,2606.1,26.8771]
[1752026543801,4.60711,2606.2,2606.1,0.6871]
[1752026544001,3.97501,2606.2,2606.1,26.8821]
[1752026544204,4.60711,2606.2,2606.1,26.8821]
[1752026546801,3.8399,2606.2,2606.1,27.64934]
[1752026547002,3.8399,2606.2,2606.1,28.62504]
[1752026547208,4.60711,2606.2,2606.1,27.63934]
[1752026547706,3.8399,2606.2,2606.1,27.63934]
[1752026547906,3.8399,2606.2,2606.1,28.61504]
[1752026548601,4.60711,2606.2,2606.1,28.61504]
[1752026549207,3.8399,2606.2,2606.1,28.61504]
[1752026550307,4.60711,2606.2,2606.1,28.61504]
[1752026550709,4.60711,2606.2,2606.1,27.8478]
[1752026551411,4.60711,2606.2,2606.1,28.61504]
[1752026551709,4.60711,2606.2,2606.1,27.8478]
[1752026551909,4.60711,2606.2,2606.1,28.61504]
[1752026554214,4.8345,2606.2,2605.7,0.9757]
[1752026554412,0.76737,2605.7,2605.6,0.76737]
[1752026554707,0.76737,2605.7,2605.6,27.62147]
[1752026555109,1.39947,2605.7,2605.6,27.62147]
[1752026555307,1.39947,2605.7,2605.6,0.6871]
[1752026555512,1.39947,2605.7,2605.6,26.8611]
[1752026555713,1.39947,2605.7,2605.6,27.62849]
[1752026557714,1.39947,2605.7,2605.6,26.8551]
[1752026558117,1.39947,2605.7,2605.6,27.62249]
[1752026558814,0.76742,2605.5,2605.4,0.9757]
[1752026559016,0.76742,2605.5,2605.4,26.8531]
[1752026559512,1.39952,2605.5,2605.4,27.62055]
[1752026559910,1.41181,2605.6,2605.5,0.76742]
[1752026560111,2.04391,2605.6,2605.5,1.45452]
[1752026560416,1.41181,2605.6,2605.5,0.6871]
[1752026560616,0.76745,2605.4,2605.3,0.76746]
[1752026560818,1.39955,2605.4,2605.3,27.62056]
[1752026561012,0.76745,2605.4,2605.3,27.62056]
[1752026561412,0.7675,2605.3,2605.1,0.6813]
[1752026561612,3.9753,2605.3,2605.2,0.6871]
[1752026561812,3.9753,2605.3,2605.2,27.6216]
[1752026562014,4.6074,2605.3,2605.2,26.8541]
[1752026562307,3.9753,2605.3,2605.2,26.8541]
[1752026562818,0.76752,2605.2,2605.1,0.76752]
[1752026563014,2.04752,2605.2,2605.1,27.62462]
[1752026563613,2.04752,2605.2,2605.1,28.60032]
[1752026563809,1.28,2605.2,2604.9,55.9733]
[1752026564013,3.2078,2605.0,2604.9,56.74089]
[1752026564218,3.2078,2605.0,2604.9,27.61989]
[1752026564418,3.8399,2605.0,2604.9,28.30699]
[1752026564714,3.8399,2605.0,2604.9,2.13599]
[1752026565017,3.8399,2605.0,2604.9,28.30899]
[1752026565917,4.60746,2605.0,2604.9,28.30899]
[1752026566110,4.60746,2605.0,2604.9,27.62769]
[1752026566316,3.8399,2605.0,2604.9,27.62769]
[1752026566619,3.2078,2605.6,2605.2,0.7675]
[1752026566815,3.2078,2606.0,2605.9,0.7673]
[1752026567015,3.21555365,2606.3,2605.9,26.197]
[1752026567218,1.51963815,2606.2,2606.1,0.76724]
[1752026567419,1.51963815,2606.2,2606.1,26.96624]
[1752026567817,2.15173815,2606.2,2606.1,26.199]
[1752026568019,1.51963815,2606.2,2606.1,26.96624]
[1752026568416,2.15173815,2606.2,2606.1,26.96624]
[1752026569121,4.41653468,2606.2,2606.1,26.96624]
[1752026570218,2.15173815,2606.2,2606.1,26.96624]
[1752026570422,1.51963815,2606.2,2606.1,28.58334]
[1752026570623,0.00775365,2606.3,2606.2,0.76721]
[1752026570920,0.00775365,2606.3,2606.2,2.09051]
[1752026571118,1.51810995,2606.3,2606.2,2.09051]
[1752026571322,1.51810995,2606.3,2606.2,5.29831]
[1752026571521,3.2078,2606.8,2606.7,0.76706]
[1752026572020,3.2078,2606.8,2606.7,2.38416]
[1752026572924,3.2078,2606.8,2606.7,1.6171]
[1752026573126,3.2078,2606.8,2606.7,2.38416]
[1752026573420,3.8975,2606.8,2606.7,2.38416]
[1752026574127,3.2078,2606.8,2606.7,2.38416]
[1752026574323,3.2078,2606.8,2606.7,1.6171]
[1752026574622,3.2078,2606.8,2606.7,2.38416]
[1752026575621,3.8975,2606.8,2606.7,2.38416]
[1752026576922,3.2078,2606.8,2606.7,0.76706]
[1752026577118,3.2078,2607.1,2606.7,2.9388]
[1752026577325,3.97476,2607.1,2606.9,0.76699]
[1752026578020,3.2078,2607.1,2607.0,26.196]
[1752026578224,44.0078,2607.4,2607.0,26.196]
[1752026578427,44.0078,2607.4,2607.1,0.76693]
[1752026578428,0.7669,2607.3,2607.1,0.76693]
[1752026578623,0.76692,2607.2,2607.0,26.96296]
[1752026578822,0.76692,2607.2,2607.1,0.76695]
[1752026579022,0.76692,2607.2,2607.0,26.196]
[1752026579225,0.76692,2607.2,2607.0,26.96295]
[1752026580025,0.76693,2607.2,2607.0,26.196]
[1752026580226,44.0078,2607.4,2606.9,0.76698]
[1752026580426,0.76697,2607.1,2607.0,26.96097]
[1752026580723,4.66447,2607.1,2607.0,26.8314]
[1752026581928,0.76697,2607.0,2606.9,0.767]
[1752026582122,1.45667,2607.0,2606.9,26.8284]
[1752026582521,1.45667,2607.0,2606.9,0.6414]
[1752026582722,1.45667,2607.0,2606.9,26.8284]
[1752026583224,1.45667,2607.0,2606.9,1.4084]
[1752026583425,1.45667,2607.0,2606.9,26.8274]
[1752026583727,1.45667,2607.0,2606.9,1.4084]
[1752026583926,1.45667,2607.0,2606.9,27.5934]
[1752026584627,1.45667,2607.0,2606.9,0.6414]
[1752026584827,1.45667,2607.0,2606.9,26.8244]
[1752026587024,0.767,2606.9,2606.8,0.76701]
[1752026587224,1.4542,2606.9,2606.8,26.176]
[1752026587425,2.1439,2606.9,2606.8,26.8174]
[1752026587726,2.1439,2606.9,2606.8,27.58443]
[1752026588423,2.1439,2606.9,2606.8,28.56423]
[1752026590830,2.1439,2606.9,2606.8,27.58443]
[1752026591231,1.3769,2606.9,2606.8,2.38823]
[1752026591530,1.3769,2606.9,2606.8,28.55523]
[1752026591725,1.3769,2606.9,2606.8,28.55323]
[1752026592530,2.1439,2606.9,2606.8,28.55323]
[1752026592830,2.1439,2606.9,2606.8,2.38823]
[1752026593230,2.1439,2606.9,2606.5,5.79159]
[1752026593231,0.76709,2606.7,2606.6,0.76707]
[1752026593531,0.76709,2606.7,2606.6,27.56847]
[1752026593934,1.45679,2606.7,2606.6,27.56847]
[1752026594434,1.45679,2606.7,2606.6,26.8014]
[1752026594636,1.45679,2606.7,2606.6,0.6414]
[1752026594939,1.45679,2606.7,2606.5,0.666]
[1752026594940,0.76709,2606.6,2606.5,0.666]
[1752026595134,0.76709,2606.6,2606.5,26.829]
[1752026595335,1.45679,2606.6,2606.5,27.4704]
[1752026595536,1.45679,2606.6,2606.5,1.3074]
[1752026595838,1.45679,2606.6,2606.5,28.23652]
[1752026596338,0.76712,2606.5,2606.4,0.76714]
[1752026596534,0.76712,2606.5,2606.4,26.92914]
[1752026596735,1.45682,2606.5,2606.4,27.57054]
[1752026599333,0.6897,2606.5,2606.4,27.57054]
[1752026600339,1.45682,2606.5,2606.4,1.40854]
[1752026600638,1.45682,2606.5,2606.4,27.57454]
[1752026601335,0.6897,2606.5,2606.4,27.57454]
[1752026604245,0.6897,2606.5,2606.4,28.58354]
[1752026605046,1.45682,2606.5,2606.4,28.58354]
[1752026606147,1.45682,2606.5,2606.4,27.57454]
[1752026606544,5.39351477,2606.5,2606.2,1.41689]
[1752026606741,0.76718,2606.3,2606.2,1.41689]
[1752026606945,0.76718,2606.3,2606.2,28.25139]
[1752026607450,1.39888,2606.3,2606.2,28.25139]
[1752026607847,1.39888,2606.3,2606.2,26.8355]
[1752026608351,1.39888,2606.3,2606.2,26.8385]
[1752026608541,1.39888,2606.3,2606.2,0.6845]
[1752026609649,1.39888,2606.3,2606.2,1.45171]
[1752026609949,1.39888,2606.3,2606.2,27.60471]
[1752026610449,1.39888,2606.3,2606.2,26.8375]
[1752026611045,1.39888,2606.3,2606.2,0.6845]
[1752026611350,1.39888,2606.3,2606.2,26.8355]
[1752026611549,1.39888,2606.3,2606.2,27.60271]
[1752026614452,0.6317,2606.3,2606.2,27.60271]
[1752026615548,0.6317,2606.3,2606.2,28.61171]
[1752026616553,3.97493,2606.5,2606.4,0.76715]
[1752026616748,4.60663,2606.5,2606.4,0.6845]
[1752026616948,3.97493,2606.5,2606.4,1.45165]
[1752026617557,4.60663,2606.5,2606.4,1.45165]
[1752026618251,4.60663,2606.5,2606.4,0.6845]
[1752026618451,4.60663,2606.5,2606.4,27.59065]
[1752026618958,5.59113,2606.5,2606.4,26.139]
[1752026619253,0.76718,2606.3,2606.2,0.7672]
[1752026619455,0.6691,2606.4,2606.3,0.76718]
[1752026619655,0.6691,2606.4,2606.3,1.45168]
[1752026620350,2.06795,2606.4,2606.3,1.45168]
[1752026620955,1.3008,2606.4,2606.3,1.45168]
[1752026621756,4.5086,2606.4,2606.3,1.45168]
[1752026622057,5.27575,2606.4,2606.3,1.45168]
[1752026624060,4.5086,2606.4,2606.3,1.45168]
[1752026624360,5.27575,2606.4,2606.3,1.45168]
[1752026625161,4.5086,2606.4,2606.3,1.45168]
[1752026625362,6.00652295,2606.4,2606.3,2.46068]
[1752026625961,6.00652295,2606.4,2606.3,1.45168]
[1752026628066,4.70572295,2606.4,2606.3,2.46068]
[1752026628261,3.2078,2606.4,2606.3,3.76848]
[1752026628761,3.2078,2606.7,2606.6,0.76709]
[1752026628961,4.7061382,2606.7,2606.6,27.58859]
[1752026629159,5.3378382,2606.7,2606.6,28.59759]
[1752026629662,4.7061382,2606.7,2606.6,28.59759]